[Event "*** SCC Grand Prix: Titled Tuesday Blitz"]
[Site "Chess.com"]
[Date "2020.06.02"]
[Round "2"]
[White "14Sokol88"]
[Black "BogdanBelyakov89"]
[Result "1/2-1/2"]
[WhiteElo "2419"]
[BlackElo "2653"]
[TimeControl "180+1"]
[EndTime "10:20:30 PDT"]
[Termination "Game drawn by repetition"]

1. e4 {[%clk 0:02:59.1]} 1... e5 {[%clk 0:02:59.8]} 2. Nf3 {[%clk 0:02:58.2]}
2... Nc6 {[%clk 0:02:59.7]} 3. Nc3 {[%clk 0:02:56.9]} 3... Nf6 {[%clk
0:02:59.5]} 4. d4 {[%clk 0:02:56.4]} 4... exd4 {[%clk 0:03:00.4]} 5. Nxd4 {[%clk
0:02:56.8]} 5... Bb4 {[%clk 0:03:00.3]} 6. Nxc6 {[%clk 0:02:56.5]} 6... bxc6
{[%clk 0:03:01.2]} 7. Bd3 {[%clk 0:02:56.4]} 7... d5 {[%clk 0:03:01.3]} 8. exd5
{[%clk 0:02:55.5]} 8... cxd5 {[%clk 0:03:02.2]} 9. O-O {[%clk 0:02:54.4]} 9...
O-O {[%clk 0:03:01.9]} 10. Bg5 {[%clk 0:02:53.5]} 10... c6 {[%clk 0:03:01.7]}
11. Qf3 {[%clk 0:02:52.3]} 11... h6 {[%clk 0:03:01.7]} 12. Bxf6 {[%clk 0:02:51]}
12... Qxf6 {[%clk 0:03:02.6]} 13. Qxf6 {[%clk 0:02:50.5]} 13... gxf6 {[%clk
0:03:03.5]} 14. Ne2 {[%clk 0:02:48.1]} 14... Bd6 {[%clk 0:03:02.6]} 15. Ng3
{[%clk 0:02:40.9]} 15... Be6 {[%clk 0:02:52.1]} 16. Nf5 {[%clk 0:02:26]} 16...
Bxf5 {[%clk 0:02:51.3]} 17. Bxf5 {[%clk 0:02:26.9]} 17... Be5 {[%clk 0:02:45]}
18. Rab1 {[%clk 0:02:25.4]} 18... Rab8 {[%clk 0:02:44.8]} 19. b3 {[%clk
0:02:24.3]} 19... c5 {[%clk 0:02:40.4]} 20. Rfe1 {[%clk 0:02:19.9]} 20... Rfd8
{[%clk 0:02:39.1]} 21. Kf1 {[%clk 0:02:16.7]} 21... a5 {[%clk 0:02:38.2]} 22. g3
{[%clk 0:02:09.3]} 22... Kf8 {[%clk 0:02:35.5]} 23. Re3 {[%clk 0:01:53.6]} 23...
Rb4 {[%clk 0:02:27.6]} 24. Rd1 {[%clk 0:01:36.6]} 24... a4 {[%clk 0:01:51.6]}
25. Red3 {[%clk 0:01:33.5]} 25... axb3 {[%clk 0:01:39.9]} 26. axb3 {[%clk
0:01:32.7]} 26... d4 {[%clk 0:01:33.8]} 27. Ra1 {[%clk 0:01:12.8]} 27... Rbb8
{[%clk 0:01:29.1]} 28. Be4 {[%clk 0:01:05.9]} 28... Re8 {[%clk 0:01:25.4]} 29.
Bc6 {[%clk 0:01:00.5]} 29... Re6 {[%clk 0:01:21.7]} 30. Bd5 {[%clk 0:00:59.1]}
30... Re7 {[%clk 0:01:21.3]} 31. Bc4 {[%clk 0:00:57.9]} 31... Kg7 {[%clk
0:01:19.4]} 32. Ra6 {[%clk 0:00:55]} 32... Rbb7 {[%clk 0:01:13]} 33. f4 {[%clk
0:00:34.4]} 33... Bb8 {[%clk 0:01:08.7]} 34. Rd1 {[%clk 0:00:33.6]} 34... Ra7
{[%clk 0:01:07.1]} 35. Rda1 {[%clk 0:00:31.6]} 35... Rxa6 {[%clk 0:01:04.2]} 36.
Rxa6 {[%clk 0:00:32.5]} 36... Ba7 {[%clk 0:00:33.9]} 37. Rc6 {[%clk 0:00:31.2]}
37... Kg6 {[%clk 0:00:26.2]} 38. Kg2 {[%clk 0:00:30.3]} 38... Rb7 {[%clk
0:00:23.1]} 39. Kf3 {[%clk 0:00:27.2]} 39... Re7 {[%clk 0:00:23.1]} 40. Bd3+
{[%clk 0:00:23.1]} 40... Kg7 {[%clk 0:00:22.8]} 41. Kg4 {[%clk 0:00:22.5]} 41...
Re6 {[%clk 0:00:21.6]} 42. Rc7 {[%clk 0:00:20.5]} 42... Bb6 {[%clk 0:00:21.5]}
43. Rb7 {[%clk 0:00:20.2]} 43... Ba5 {[%clk 0:00:16.4]} 44. Bc4 {[%clk
0:00:19.7]} 44... f5+ {[%clk 0:00:14.5]} 45. Kxf5 {[%clk 0:00:17.4]} 45... Rf6+
{[%clk 0:00:14.9]} 46. Ke4 {[%clk 0:00:16.6]} 46... Bc3 {[%clk 0:00:13.4]} 47.
g4 {[%clk 0:00:16.1]} 47... Bb4 {[%clk 0:00:12.9]} 48. h4 {[%clk 0:00:15.8]}
48... Bd2 {[%clk 0:00:12.6]} 49. f5 {[%clk 0:00:15.5]} 49... Kf8 {[%clk
0:00:10.8]} 50. Rc7 {[%clk 0:00:14]} 50... Kg7 {[%clk 0:00:11.2]} 51. Rxc5
{[%clk 0:00:13.3]} 51... Be1 {[%clk 0:00:11.8]} 52. g5 {[%clk 0:00:11.5]} 52...
Rb6 {[%clk 0:00:11.7]} 53. f6+ {[%clk 0:00:11.2]} 53... Kg6 {[%clk 0:00:11.6]}
54. Rc7 {[%clk 0:00:10.8]} 54... hxg5 {[%clk 0:00:11.5]} 55. hxg5 {[%clk
0:00:11.2]} 55... Kxg5 {[%clk 0:00:11.9]} 56. Rxf7 {[%clk 0:00:09.6]} 56... Bc3
{[%clk 0:00:12]} 57. Kd3 {[%clk 0:00:05.4]} 57... Rxf6 {[%clk 0:00:11.6]} 58.
Rxf6 {[%clk 0:00:05.5]} 58... Kxf6 {[%clk 0:00:12]} 59. Bb5 {[%clk 0:00:05.7]}
59... Ke5 {[%clk 0:00:12.2]} 60. Kc4 {[%clk 0:00:05.7]} 60... Kd6 {[%clk
0:00:12.6]} 61. Be8 {[%clk 0:00:05.4]} 61... Kc7 {[%clk 0:00:12.9]} 62. Bh5
{[%clk 0:00:05.8]} 62... Kb6 {[%clk 0:00:13.2]} 63. Be2 {[%clk 0:00:06.1]} 63...
Kc7 {[%clk 0:00:13.1]} 64. Bd3 {[%clk 0:00:06.2]} 64... Kb6 {[%clk 0:00:13.6]}
65. b4 {[%clk 0:00:05.6]} 65... Kb7 {[%clk 0:00:13.8]} 66. Kc5 {[%clk
0:00:05.5]} 66... Kc7 {[%clk 0:00:14]} 67. b5 {[%clk 0:00:05.7]} 67... Kb8
{[%clk 0:00:14.3]} 68. Kc6 {[%clk 0:00:05.5]} 68... Ba5 {[%clk 0:00:13.9]} 69.
b6 {[%clk 0:00:05.1]} 69... Bc3 {[%clk 0:00:14]} 70. Be4 {[%clk 0:00:04.5]}
70... Ba5 {[%clk 0:00:14.1]} 71. Kc5 {[%clk 0:00:04]} 71... Bc3 {[%clk
0:00:13.9]} 72. Kc4 {[%clk 0:00:03.8]} 72... Ba5 {[%clk 0:00:12.7]} 73. b7
{[%clk 0:00:02.5]} 73... Bc3 {[%clk 0:00:12.7]} 74. Kd3 {[%clk 0:00:02.9]} 74...
Kc7 {[%clk 0:00:13.2]} 75. Bf3 {[%clk 0:00:03.8]} 75... Kb8 {[%clk 0:00:13.6]}
76. Kc4 {[%clk 0:00:04.3]} 76... Kc7 {[%clk 0:00:13.9]} 77. Kd3 {[%clk 0:00:05]}
77... Kb8 {[%clk 0:00:14.2]} 78. Bh1 {[%clk 0:00:05.4]} 78... Kc7 {[%clk
0:00:14.6]} 79. Kc4 {[%clk 0:00:05.8]} 79... Kb8 {[%clk 0:00:15]} 80. Kb5 {[%clk
0:00:06.2]} 80... Kc7 {[%clk 0:00:14.9]} 81. Ka6 {[%clk 0:00:06.3]} 81... Kb8
{[%clk 0:00:15.5]} 82. Kb6 {[%clk 0:00:06.7]} 82... Bb2 {[%clk 0:00:15.7]} 83.
Kb5 {[%clk 0:00:05.7]} 83... Bc3 {[%clk 0:00:16]} 84. Kc4 {[%clk 0:00:05.7]}
84... Kc7 {[%clk 0:00:15.7]} 85. Kd3 {[%clk 0:00:05.5]} 85... Kb8 {[%clk
0:00:16.1]} 86. Bg2 {[%clk 0:00:06]} 86... Kc7 {[%clk 0:00:16.5]} 87. Kc4 {[%clk
0:00:05.9]} 87... Kb8 {[%clk 0:00:16.9]} 88. Kc5 {[%clk 0:00:06]} 88... Kc7
{[%clk 0:00:17]} 89. Be4 {[%clk 0:00:06.1]} 89... Kb8 {[%clk 0:00:17.9]} 90. Kc6
{[%clk 0:00:06]} 90... Bb2 {[%clk 0:00:17.6]} 91. Kd7 {[%clk 0:00:05.9]} 91...
Bc3 {[%clk 0:00:17.6]} 92. Kc6 {[%clk 0:00:05.6]} 92... Bb2 {[%clk 0:00:17.8]}
93. Bd3 {[%clk 0:00:06]} 93... Bc3 {[%clk 0:00:18]} 94. Kb6 {[%clk 0:00:05.8]}
94... Bb2 {[%clk 0:00:18]} 95. Ka6 {[%clk 0:00:05.2]} 95... Bc3 {[%clk
0:00:18.2]} 96. Be4 {[%clk 0:00:04.7]} 96... Bb2 {[%clk 0:00:18.5]} 97. Kb5
{[%clk 0:00:04.5]} 97... Bc3 {[%clk 0:00:18.7]} 98. Kc4 {[%clk 0:00:04.3]} 98...
Kc7 {[%clk 0:00:18.9]} 99. Kd3 {[%clk 0:00:04]} 99... Kb8 {[%clk 0:00:19.8]}
100. Bd5 {[%clk 0:00:04.2]} 100... Kc7 {[%clk 0:00:20.7]} 101. Ke4 {[%clk
0:00:03.5]} 101... Kb8 {[%clk 0:00:21.6]} 102. Kd3 {[%clk 0:00:03.7]} 102... Kc7
{[%clk 0:00:22.5]} 103. Be4 {[%clk 0:00:04.6]} 103... Kb8 {[%clk 0:00:23.3]}
104. Bd5 {[%clk 0:00:05]} 1/2-1/2

[Event "*** SCC Grand Prix: Titled Tuesday Blitz"]
[Site "Chess.com"]
[Date "2020.06.02"]
[Round "3"]
[White "Gyapiking"]
[Black "Jadeit90"]
[Result "1-0"]
[WhiteElo "2520"]
[BlackElo "2289"]
[TimeControl "180+1"]
[EndTime "10:23:27 PDT"]
[Termination "Gyapiking won by resignation"]

1. d4 {[%clk 0:03:00.9]} 1... g6 {[%clk 0:02:56.9]} 2. e4 {[%clk 0:03:00.3]}
2... Bg7 {[%clk 0:02:57.2]} 3. Nc3 {[%clk 0:02:59.2]} 3... c5 {[%clk 0:02:58.1]}
4. dxc5 {[%clk 0:02:58.4]} 4... Qa5 {[%clk 0:02:57.9]} 5. Bd2 {[%clk 0:02:57.6]}
5... Qxc5 {[%clk 0:02:58.1]} 6. Nd5 {[%clk 0:02:57.4]} 6... Na6 {[%clk
0:02:58.6]} 7. Nf3 {[%clk 0:02:55.2]} 7... Nf6 {[%clk 0:02:58.7]} 8. Nxf6+
{[%clk 0:02:42.2]} 8... Bxf6 {[%clk 0:02:58.4]} 9. Bd3 {[%clk 0:02:41.9]} 9...
Bxb2 {[%clk 0:02:56.4]} 10. Rb1 {[%clk 0:02:41.2]} 10... Bc3 {[%clk 0:02:56.7]}
11. h4 {[%clk 0:02:40.4]} 11... h5 {[%clk 0:02:55.8]} 12. Rb5 {[%clk 0:02:39.4]}
12... Bxd2+ {[%clk 0:02:55.4]} 13. Qxd2 {[%clk 0:02:39]} 13... Qc7 {[%clk
0:02:53.6]} 14. O-O {[%clk 0:02:37.3]} 14... O-O {[%clk 0:02:33.9]} 15. Qh6
{[%clk 0:02:35.7]} 15... Qc3 {[%clk 0:02:31.1]} 16. e5 {[%clk 0:02:24.5]} 1-0

[Event "*** SCC Grand Prix: Titled Tuesday Blitz"]
[Site "Chess.com"]
[Date "2020.06.02"]
[Round "3"]
[White "pedro_nascimento85"]
[Black "mortngabriel"]
[Result "0-1"]
[WhiteElo "1932"]
[BlackElo "2455"]
[TimeControl "180+1"]
[EndTime "10:23:34 PDT"]
[Termination "mortngabriel won by resignation"]

1. d4 {[%clk 0:03:00.9]} 1... Nf6 {[%clk 0:02:58.9]} 2. c4 {[%clk 0:02:59.6]}
2... c5 {[%clk 0:02:59.4]} 3. d5 {[%clk 0:02:59.1]} 3... b5 {[%clk 0:02:59.8]}
4. Qc2 {[%clk 0:02:58.1]} 4... bxc4 {[%clk 0:02:58.5]} 5. e4 {[%clk 0:02:57.7]}
5... d6 {[%clk 0:02:59.4]} 6. Nd2 {[%clk 0:02:56.3]} 6... g6 {[%clk 0:02:59.5]}
7. Nxc4 {[%clk 0:02:55.8]} 7... Bg7 {[%clk 0:02:59.7]} 8. Be2 {[%clk 0:02:53.8]}
8... O-O {[%clk 0:02:59.8]} 9. Nf3 {[%clk 0:02:51.3]} 9... Bg4 {[%clk
0:02:57.4]} 10. O-O {[%clk 0:02:50.5]} 10... Nbd7 {[%clk 0:02:50.5]} 11. h3
{[%clk 0:02:48]} 11... Bxf3 {[%clk 0:02:50.3]} 12. Bxf3 {[%clk 0:02:48.4]} 12...
Ne8 {[%clk 0:02:46.9]} 13. Bf4 {[%clk 0:02:40.8]} 13... Nc7 {[%clk 0:02:44.2]}
14. Rab1 {[%clk 0:02:33.1]} 14... Nb5 {[%clk 0:02:43]} 15. Be3 {[%clk 0:02:20]}
15... Nd4 {[%clk 0:02:42.6]} 16. Bxd4 {[%clk 0:02:19.6]} 16... Bxd4 {[%clk
0:02:43.5]} 17. Na5 {[%clk 0:02:12.3]} 17... Qxa5 {[%clk 0:02:43]} 0-1

[Event "*** SCC Grand Prix: Titled Tuesday Blitz"]
[Site "Chess.com"]
[Date "2020.06.02"]
[Round "3"]
[White "Lenyas66"]
[Black "warmoatmeal"]
[Result "1-0"]
[WhiteElo "2503"]
[BlackElo "2217"]
[TimeControl "180+1"]
[EndTime "10:23:44 PDT"]
[Termination "Lenyas66 won by resignation"]

1. e4 {[%clk 0:03:00.9]} 1... c5 {[%clk 0:02:54.8]} 2. Nf3 {[%clk 0:03:00.7]}
2... Nc6 {[%clk 0:02:53.5]} 3. Bb5 {[%clk 0:03:00.5]} 3... g6 {[%clk 0:02:52.8]}
4. O-O {[%clk 0:02:59.4]} 4... Bg7 {[%clk 0:02:52.6]} 5. Re1 {[%clk 0:02:59.4]}
5... e5 {[%clk 0:02:52]} 6. b4 {[%clk 0:02:58.2]} 6... cxb4 {[%clk 0:02:48.8]}
7. a3 {[%clk 0:02:57.8]} 7... Nge7 {[%clk 0:02:40.5]} 8. axb4 {[%clk 0:02:55.6]}
8... O-O {[%clk 0:02:39.9]} 9. Bxc6 {[%clk 0:02:50.5]} 9... dxc6 {[%clk
0:02:40.8]} 10. Bb2 {[%clk 0:02:49.5]} 10... Be6 {[%clk 0:02:24.9]} 11. Qc1
{[%clk 0:02:35.2]} 11... Qd6 {[%clk 0:02:23.4]} 12. Ba3 {[%clk 0:02:30.2]} 12...
b5 {[%clk 0:02:22.5]} 13. d3 {[%clk 0:02:28.7]} 13... Rad8 {[%clk 0:02:21.2]}
14. Nbd2 {[%clk 0:02:28.5]} 14... f5 {[%clk 0:02:21]} 15. Qb1 {[%clk 0:02:20.8]}
15... Nd5 {[%clk 0:02:20.3]} 16. exd5 {[%clk 0:02:18.9]} 16... Bxd5 {[%clk
0:02:18.7]} 17. Bb2 {[%clk 0:02:18.3]} 1-0

[Event "*** SCC Grand Prix: Titled Tuesday Blitz"]
[Site "Chess.com"]
[Date "2020.06.02"]
[Round "3"]
[White "Salem-AR"]
[Black "Jojo_1608"]
[Result "1-0"]
[WhiteElo "3033"]
[BlackElo "2166"]
[TimeControl "180+1"]
[EndTime "10:23:48 PDT"]
[Termination "Salem-AR won by resignation"]

1. Nf3 {[%clk 0:03:00.9]} 1... Nf6 {[%clk 0:02:59.6]} 2. c4 {[%clk 0:03:01]}
2... g6 {[%clk 0:02:59.5]} 3. Nc3 {[%clk 0:03:00.6]} 3... Bg7 {[%clk 0:02:59.6]}
4. e4 {[%clk 0:03:01.2]} 4... d6 {[%clk 0:02:59.6]} 5. d4 {[%clk 0:03:01.6]}
5... O-O {[%clk 0:02:59.6]} 6. Be2 {[%clk 0:03:02.4]} 6... c5 {[%clk 0:02:56.9]}
7. O-O {[%clk 0:03:01]} 7... cxd4 {[%clk 0:02:56.6]} 8. Nxd4 {[%clk 0:02:59.8]}
8... Nc6 {[%clk 0:02:56.8]} 9. Be3 {[%clk 0:02:58.9]} 9... Nd7 {[%clk
0:02:56.4]} 10. Rc1 {[%clk 0:02:52.4]} 10... a6 {[%clk 0:02:40.2]} 11. a3 {[%clk
0:02:48]} 11... Nde5 {[%clk 0:02:34.3]} 12. b4 {[%clk 0:02:29.6]} 12... Nxd4
{[%clk 0:02:27.3]} 13. Bxd4 {[%clk 0:02:30.5]} 13... Be6 {[%clk 0:02:27.4]} 14.
f4 {[%clk 0:02:30.5]} 14... Nd7 {[%clk 0:02:10.9]} 15. Bxg7 {[%clk 0:02:29.5]}
15... Kxg7 {[%clk 0:02:11.3]} 16. f5 {[%clk 0:02:30.2]} 1-0

[Event "*** SCC Grand Prix: Titled Tuesday Blitz"]
[Site "Chess.com"]
[Date "2020.06.02"]
[Round "3"]
[White "Elbek_Jumanov"]
[Black "SahajGrover"]
[Result "0-1"]
[WhiteElo "2427"]
[BlackElo "2714"]
[TimeControl "180+1"]
[EndTime "10:24:48 PDT"]
[Termination "SahajGrover won by resignation"]

1. c4 {[%clk 0:03:00.9]} 1... c5 {[%clk 0:02:57.5]} 2. Nf3 {[%clk 0:03:00.6]}
2... Nc6 {[%clk 0:02:57]} 3. Nc3 {[%clk 0:03:00.7]} 3... g6 {[%clk 0:02:56.6]}
4. g3 {[%clk 0:03:01.2]} 4... Bg7 {[%clk 0:02:56.7]} 5. Bg2 {[%clk 0:03:01.4]}
5... e6 {[%clk 0:02:57.2]} 6. O-O {[%clk 0:02:54.2]} 6... Nge7 {[%clk 0:02:57]}
7. b3 {[%clk 0:02:53.7]} 7... d5 {[%clk 0:02:55.6]} 8. cxd5 {[%clk 0:02:52.3]}
8... exd5 {[%clk 0:02:56]} 9. Bb2 {[%clk 0:02:52.8]} 9... O-O {[%clk 0:02:55.1]}
10. Rc1 {[%clk 0:02:51.9]} 10... b6 {[%clk 0:02:55.1]} 11. Na4 {[%clk
0:02:34.6]} 11... d4 {[%clk 0:02:33.2]} 12. b4 {[%clk 0:02:33.7]} 12... cxb4
{[%clk 0:02:27.7]} 13. Nxd4 {[%clk 0:01:57.4]} 13... Bxd4 {[%clk 0:02:28.6]} 14.
Bxd4 {[%clk 0:01:57.3]} 14... Qxd4 {[%clk 0:02:29.5]} 15. Bxc6 {[%clk
0:01:52.4]} 15... Nxc6 {[%clk 0:02:30.4]} 16. Rxc6 {[%clk 0:01:51.7]} 16... Bh3
{[%clk 0:02:30.5]} 17. d3 {[%clk 0:01:39]} 17... Qd5 {[%clk 0:02:26.9]} 0-1

[Event "*** SCC Grand Prix: Titled Tuesday Blitz"]
[Site "Chess.com"]
[Date "2020.06.02"]
[Round "3"]
[White "Anna_ChessMate"]
[Black "CroissantNeuf"]
[Result "0-1"]
[WhiteElo "2548"]
[BlackElo "2377"]
[TimeControl "180+1"]
[EndTime "10:24:49 PDT"]
[Termination "CroissantNeuf won by resignation"]

1. d4 {[%clk 0:03:00.9]} 1... Nf6 {[%clk 0:02:59.5]} 2. c4 {[%clk 0:03:01.4]}
2... e6 {[%clk 0:02:59.1]} 3. Nf3 {[%clk 0:03:01.7]} 3... c5 {[%clk 0:02:59.7]}
4. Nc3 {[%clk 0:02:57.6]} 4... cxd4 {[%clk 0:02:57.8]} 5. Nxd4 {[%clk
0:02:58.5]} 5... d5 {[%clk 0:02:57.4]} 6. cxd5 {[%clk 0:02:51.6]} 6... Nxd5
{[%clk 0:02:58]} 7. e4 {[%clk 0:02:49.5]} 7... Nxc3 {[%clk 0:02:57]} 8. bxc3
{[%clk 0:02:50.4]} 8... e5 {[%clk 0:02:56.8]} 9. Nf3 {[%clk 0:02:39.4]} 9...
Qxd1+ {[%clk 0:02:56.5]} 10. Kxd1 {[%clk 0:02:39.3]} 10... f6 {[%clk 0:02:55]}
11. Kc2 {[%clk 0:02:31.2]} 11... Be6 {[%clk 0:02:52.3]} 12. Be3 {[%clk
0:02:31.1]} 12... Nc6 {[%clk 0:02:46.9]} 13. Bb5 {[%clk 0:02:29.9]} 13... Kf7
{[%clk 0:02:34.4]} 14. Rhd1 {[%clk 0:02:28.1]} 14... Be7 {[%clk 0:02:30.9]} 15.
Rab1 {[%clk 0:02:09.8]} 15... Bxa2 {[%clk 0:02:19.7]} 16. Bxc6 {[%clk
0:02:09.3]} 16... Bxb1+ {[%clk 0:02:19]} 17. Kxb1 {[%clk 0:02:07.1]} 17... bxc6
{[%clk 0:02:19.7]} 18. Rd7 {[%clk 0:02:07.6]} 18... Ke6 {[%clk 0:02:13.1]} 19.
Rc7 {[%clk 0:02:06.7]} 19... Rhc8 {[%clk 0:02:11.9]} 20. Rxa7 {[%clk 0:02:04.1]}
20... Rxa7 {[%clk 0:02:10.3]} 21. Bxa7 {[%clk 0:02:05]} 21... c5 {[%clk
0:02:08.8]} 0-1

[Event "*** SCC Grand Prix: Titled Tuesday Blitz"]
[Site "Chess.com"]
[Date "2020.06.02"]
[Round "3"]
[White "Meri-Arabidze"]
[Black "Sam_ChessMood"]
[Result "0-1"]
[WhiteElo "2569"]
[BlackElo "2848"]
[TimeControl "180+1"]
[EndTime "10:25:00 PDT"]
[Termination "Sam_ChessMood won by resignation"]

1. d4 {[%clk 0:03:00.9]} 1... Nf6 {[%clk 0:02:59.5]} 2. c4 {[%clk 0:03:00.8]}
2... e6 {[%clk 0:02:59.9]} 3. Nc3 {[%clk 0:03:00.7]} 3... Bb4 {[%clk 0:02:59.1]}
4. Nf3 {[%clk 0:02:58.8]} 4... d5 {[%clk 0:02:57.2]} 5. Bg5 {[%clk 0:02:57.4]}
5... dxc4 {[%clk 0:02:45.6]} 6. e4 {[%clk 0:02:52.1]} 6... b5 {[%clk 0:02:41.8]}
7. a4 {[%clk 0:02:47.6]} 7... c6 {[%clk 0:02:24.7]} 8. e5 {[%clk 0:02:36.5]}
8... h6 {[%clk 0:02:24.2]} 9. Bh4 {[%clk 0:02:36.3]} 9... g5 {[%clk 0:02:24.1]}
10. Nxg5 {[%clk 0:02:36.6]} 10... hxg5 {[%clk 0:02:02.4]} 0-1

[Event "*** SCC Grand Prix: Titled Tuesday Blitz"]
[Site "Chess.com"]
[Date "2020.06.02"]
[Round "3"]
[White "PotapovaM"]
[Black "WonderChampion"]
[Result "1-0"]
[WhiteElo "2456"]
[BlackElo "1963"]
[TimeControl "180+1"]
[EndTime "10:25:06 PDT"]
[Termination "PotapovaM won by checkmate"]

1. d4 {[%clk 0:03:00.9]} 1... d5 {[%clk 0:01:30.6]} 2. c4 {[%clk 0:03:00.1]}
2... e6 {[%clk 0:01:29.1]} 3. Nf3 {[%clk 0:02:59.9]} 3... c6 {[%clk 0:01:28.9]}
4. Nc3 {[%clk 0:02:56.1]} 4... dxc4 {[%clk 0:01:28]} 5. g3 {[%clk 0:02:54]} 5...
b5 {[%clk 0:01:27.2]} 6. Bg2 {[%clk 0:02:53.8]} 6... Bb4 {[%clk 0:01:27.7]} 7.
O-O {[%clk 0:02:52]} 7... Nf6 {[%clk 0:01:28.2]} 8. Ne5 {[%clk 0:02:51.8]} 8...
Bxc3 {[%clk 0:01:17.1]} 9. bxc3 {[%clk 0:02:44.9]} 9... Bb7 {[%clk 0:01:16.4]}
10. a4 {[%clk 0:02:44.5]} 10... a6 {[%clk 0:01:15]} 11. Ba3 {[%clk 0:02:43.7]}
11... Qc7 {[%clk 0:01:11]} 12. Qc1 {[%clk 0:02:25]} 12... Nbd7 {[%clk
0:01:08.6]} 13. Qg5 {[%clk 0:02:24.7]} 13... g6 {[%clk 0:00:57.1]} 14. Nxd7
{[%clk 0:02:19.1]} 14... Nxd7 {[%clk 0:00:55.4]} 15. Qe7# {[%clk 0:02:18.6]} 1-0

[Event "*** SCC Grand Prix: Titled Tuesday Blitz"]
[Site "Chess.com"]
[Date "2020.06.02"]
[Round "3"]
[White "artooon"]
[Black "TengisChess"]
[Result "1-0"]
[WhiteElo "2737"]
[BlackElo "2511"]
[TimeControl "180+1"]
[EndTime "10:25:17 PDT"]
[Termination "artooon won by resignation"]

1. e4 {[%clk 0:02:59.6]} 1... c6 {[%clk 0:02:59.5]} 2. d4 {[%clk 0:02:59.3]}
2... d5 {[%clk 0:03:00.4]} 3. e5 {[%clk 0:02:59.8]} 3... c5 {[%clk 0:02:58.5]}
4. c3 {[%clk 0:02:58.8]} 4... Nc6 {[%clk 0:02:58.8]} 5. dxc5 {[%clk 0:02:56.6]}
5... Nxe5 {[%clk 0:02:56.7]} 6. Nf3 {[%clk 0:02:56.3]} 6... Nxf3+ {[%clk
0:02:54.4]} 7. Qxf3 {[%clk 0:02:57.2]} 7... Nf6 {[%clk 0:02:55]} 8. Bg5 {[%clk
0:02:51]} 8... e6 {[%clk 0:02:54.5]} 9. b4 {[%clk 0:02:46.9]} 9... Be7 {[%clk
0:02:53.5]} 10. Nd2 {[%clk 0:02:46.7]} 10... O-O {[%clk 0:02:53.5]} 11. Bd3
{[%clk 0:02:41.6]} 11... a5 {[%clk 0:02:51.8]} 12. O-O {[%clk 0:02:36.6]} 12...
e5 {[%clk 0:02:37.1]} 13. Qe2 {[%clk 0:02:32.5]} 13... e4 {[%clk 0:02:36.4]} 14.
Bb5 {[%clk 0:02:27.3]} 14... Be6 {[%clk 0:02:28]} 15. a4 {[%clk 0:02:16.1]}
15... h6 {[%clk 0:02:21.1]} 16. Be3 {[%clk 0:02:12.3]} 16... axb4 {[%clk
0:02:14]} 17. cxb4 {[%clk 0:02:13.2]} 17... d4 {[%clk 0:02:14.6]} 18. Bf4 {[%clk
0:02:13.1]} 18... d3 {[%clk 0:02:09]} 19. Qe1 {[%clk 0:02:00.4]} 19... Nd5
{[%clk 0:02:02.9]} 20. Bg3 {[%clk 0:01:51.7]} 20... f5 {[%clk 0:01:52.4]} 21.
Nxe4 {[%clk 0:01:49.3]} 21... fxe4 {[%clk 0:01:49.9]} 22. Qxe4 {[%clk
0:01:50.2]} 22... Qd7 {[%clk 0:01:48.3]} 23. Bxd7 {[%clk 0:01:48.6]} 1-0

[Event "*** SCC Grand Prix: Titled Tuesday Blitz"]
[Site "Chess.com"]
[Date "2020.06.02"]
[Round "3"]
[White "gahryman"]
[Black "wonderfultime"]
[Result "0-1"]
[WhiteElo "2699"]
[BlackElo "2983"]
[TimeControl "180+1"]
[EndTime "10:25:30 PDT"]
[Termination "wonderfultime won by resignation"]

1. d4 {[%clk 0:03:00.9]} 1... d5 {[%clk 0:03:00]} 2. Bf4 {[%clk 0:03:00.5]} 2...
Nf6 {[%clk 0:02:59.7]} 3. e3 {[%clk 0:03:00.8]} 3... e6 {[%clk 0:03:00.3]} 4.
Nf3 {[%clk 0:03:00.9]} 4... Bd6 {[%clk 0:03:00.8]} 5. Bg3 {[%clk 0:03:01.2]}
5... c5 {[%clk 0:03:00.2]} 6. c3 {[%clk 0:03:00.9]} 6... O-O {[%clk 0:03:00.5]}
7. Nbd2 {[%clk 0:03:00.7]} 7... Qc7 {[%clk 0:03:01.1]} 8. dxc5 {[%clk
0:03:00.2]} 8... Qxc5 {[%clk 0:03:02]} 9. Bd3 {[%clk 0:03:00.4]} 9... Nbd7
{[%clk 0:03:01.3]} 10. Qe2 {[%clk 0:02:54.9]} 10... e5 {[%clk 0:02:54]} 11. e4
{[%clk 0:02:54.8]} 11... dxe4 {[%clk 0:02:53]} 12. Nxe4 {[%clk 0:02:25.8]} 12...
Nxe4 {[%clk 0:02:51.5]} 13. Qxe4 {[%clk 0:02:25.4]} 13... Nf6 {[%clk 0:02:51.5]}
14. Qc4 {[%clk 0:02:23.3]} 14... e4 {[%clk 0:02:42.3]} 15. Bxd6 {[%clk
0:01:43.4]} 15... Qxd6 {[%clk 0:02:43.2]} 16. Bxe4 {[%clk 0:01:43.7]} 16... Re8
{[%clk 0:02:28.9]} 17. Ng5 {[%clk 0:01:43.4]} 17... Be6 {[%clk 0:01:59.8]} 18.
Qd4 {[%clk 0:01:10.5]} 18... Qxd4 {[%clk 0:01:57.5]} 19. cxd4 {[%clk 0:01:11.4]}
19... Nxe4 {[%clk 0:01:56.4]} 20. Nxe4 {[%clk 0:01:11.3]} 20... Bd5 {[%clk
0:01:56.8]} 0-1

[Event "*** SCC Grand Prix: Titled Tuesday Blitz"]
[Site "Chess.com"]
[Date "2020.06.02"]
[Round "3"]
[White "Shivagami"]
[Black "Mizner"]
[Result "0-1"]
[WhiteElo "2257"]
[BlackElo "2496"]
[TimeControl "180+1"]
[EndTime "10:25:43 PDT"]
[Termination "Mizner won by resignation"]

1. d4 {[%clk 0:03:00.9]} 1... d5 {[%clk 0:02:59.5]} 2. c4 {[%clk 0:03:00.8]}
2... e6 {[%clk 0:02:59.6]} 3. Nc3 {[%clk 0:03:00.5]} 3... Nf6 {[%clk 0:02:59.4]}
4. cxd5 {[%clk 0:03:00.7]} 4... Nxd5 {[%clk 0:02:59.3]} 5. e4 {[%clk 0:02:58.6]}
5... Nxc3 {[%clk 0:02:59]} 6. bxc3 {[%clk 0:02:58.9]} 6... c5 {[%clk 0:02:59.9]}
7. Nf3 {[%clk 0:02:50.6]} 7... cxd4 {[%clk 0:03:00.1]} 8. cxd4 {[%clk
0:02:50.9]} 8... Bb4+ {[%clk 0:03:00.8]} 9. Bd2 {[%clk 0:02:50.5]} 9... Bxd2+
{[%clk 0:03:01.5]} 10. Qxd2 {[%clk 0:02:50.2]} 10... O-O {[%clk 0:03:02.4]} 11.
Bd3 {[%clk 0:02:45.3]} 11... Nc6 {[%clk 0:02:51.8]} 12. Bc2 {[%clk 0:02:37.8]}
12... Qa5 {[%clk 0:02:39.7]} 13. Qxa5 {[%clk 0:02:34]} 13... Nxa5 {[%clk
0:02:39.4]} 14. O-O {[%clk 0:02:34.2]} 14... b6 {[%clk 0:02:36.9]} 15. Rfd1
{[%clk 0:02:11.2]} 15... Bb7 {[%clk 0:02:37.4]} 16. Rac1 {[%clk 0:02:11.1]}
16... Rac8 {[%clk 0:02:31.7]} 17. Bb1 {[%clk 0:02:10.9]} 17... Nc4 {[%clk
0:02:27.5]} 18. a4 {[%clk 0:01:19.4]} 18... Nb2 {[%clk 0:02:26.2]} 19. Rxc8
{[%clk 0:01:13.8]} 19... Rxc8 {[%clk 0:02:27.1]} 20. Re1 {[%clk 0:01:10]} 20...
Nxa4 {[%clk 0:02:26.7]} 21. Ne5 {[%clk 0:01:06.1]} 21... Nc3 {[%clk 0:02:18.6]}
22. Bd3 {[%clk 0:00:57.9]} 22... a5 {[%clk 0:02:14.8]} 23. Rc1 {[%clk
0:00:53.1]} 23... Ne2+ {[%clk 0:02:13.4]} 0-1